[Event "*** SCC Grand Prix: Titled Tuesday Blitz"]
[Site "Chess.com"]
[Date "2020.08.25"]
[Round "3"]
[White "Ali_rastbod"]
[Black "ViktoriyaTarasova"]
[Result "1-0"]
[WhiteElo "2669"]
[BlackElo "2226"]
[TimeControl "180+1"]
[EndTime "10:29:14 PDT"]
[Termination "Ali_rastbod won by resignation"]

1. c4 {[%clk 0:03:00.9]} 1... c5 {[%clk 0:02:56.3]} 2. Nf3 {[%clk 0:03:00.1]}
2... Nc6 {[%clk 0:02:55.8]} 3. b3 {[%clk 0:02:59.2]} 3... e5 {[%clk 0:02:55.2]}
4. Bb2 {[%clk 0:02:58.6]} 4... d6 {[%clk 0:02:55.9]} 5. g3 {[%clk 0:02:56.8]}
5... g6 {[%clk 0:02:56.2]} 6. Bg2 {[%clk 0:02:56.5]} 6... Bg7 {[%clk 0:02:56]}
7. O-O {[%clk 0:02:56.6]} 7... Nge7 {[%clk 0:02:55.5]} 8. Nc3 {[%clk 0:02:57]}
8... O-O {[%clk 0:02:55.3]} 9. d3 {[%clk 0:02:57.6]} 9... h6 {[%clk 0:02:53.4]}
10. a3 {[%clk 0:02:56.6]} 10... Be6 {[%clk 0:02:49.7]} 11. Nd2 {[%clk
0:02:56.9]} 11... d5 {[%clk 0:02:48.9]} 12. cxd5 {[%clk 0:02:57.8]} 12... Nxd5
{[%clk 0:02:48.5]} 13. Rc1 {[%clk 0:02:57.4]} 13... b6 {[%clk 0:02:45]} 14. b4
{[%clk 0:02:55.2]} 14... cxb4 {[%clk 0:02:23.5]} 15. Nxd5 {[%clk 0:02:54.2]}
15... Bxd5 {[%clk 0:02:23.1]} 16. e4 {[%clk 0:02:54.7]} 16... Be6 {[%clk
0:02:06.5]} 17. Rxc6 {[%clk 0:02:53.2]} 17... Qxd3 {[%clk 0:02:06.1]} 18. Nf3
{[%clk 0:02:44.6]} 18... Qxd1 {[%clk 0:02:00.4]} 19. Rxd1 {[%clk 0:02:45.5]}
19... bxa3 {[%clk 0:01:59.9]} 20. Bxa3 {[%clk 0:02:45.8]} 20... Rfd8 {[%clk
0:01:58.9]} 21. Rdc1 {[%clk 0:02:34.2]} 21... Rac8 {[%clk 0:01:48.4]} 22. Bf1
{[%clk 0:02:19.3]} 22... Rxc6 {[%clk 0:01:46.9]} 23. Rxc6 {[%clk 0:02:20.2]}
23... Rd1 {[%clk 0:01:45.3]} 24. Kg2 {[%clk 0:02:19.3]} 24... Ra1 {[%clk
0:01:35.1]} 25. Bd6 {[%clk 0:02:13.6]} 25... Ra5 {[%clk 0:01:25.8]} 26. Rc7
{[%clk 0:02:04.4]} 26... g5 {[%clk 0:01:06.6]} 27. h3 {[%clk 0:01:52.1]} 27...
Bf6 {[%clk 0:01:04.7]} 28. Bc4 {[%clk 0:01:40.7]} 28... Bxc4 {[%clk 0:01:01]}
29. Rxc4 {[%clk 0:01:41.6]} 29... Kg7 {[%clk 0:00:53]} 30. g4 {[%clk 0:01:40]}
30... Rb5 {[%clk 0:00:49.5]} 31. Rc7 {[%clk 0:01:37]} 31... a5 {[%clk 0:00:50]}
32. Ra7 {[%clk 0:01:35.5]} 32... Kg6 {[%clk 0:00:42.4]} 33. Ra6 {[%clk
0:01:30.8]} 33... Kg7 {[%clk 0:00:34.2]} 34. Bc7 {[%clk 0:01:28.7]} 34... Rb4
{[%clk 0:00:34.4]} 35. Bxb6 {[%clk 0:01:27.1]} 35... Rxe4 {[%clk 0:00:33.6]} 36.
Rxa5 {[%clk 0:01:26.6]} 36... Re2 {[%clk 0:00:34.1]} 37. Be3 {[%clk 0:01:22.9]}
37... e4 {[%clk 0:00:33.3]} 38. Nd4 {[%clk 0:01:19.2]} 38... Bxd4 {[%clk
0:00:33.2]} 39. Bxd4+ {[%clk 0:01:19.4]} 39... Kf8 {[%clk 0:00:33.5]} 40. Bf6
{[%clk 0:01:17.9]} 40... Ke8 {[%clk 0:00:30.8]} 41. Ra7 {[%clk 0:01:17.7]} 1-0

[Event "*** SCC Grand Prix: Titled Tuesday Blitz"]
[Site "Chess.com"]
[Date "2020.08.25"]
[Round "3"]
[White "Srisshhhtea"]
[Black "Euge_chess"]
[Result "1-0"]
[WhiteElo "2299"]
[BlackElo "2058"]
[TimeControl "180+1"]
[EndTime "10:29:15 PDT"]
[Termination "Srisshhhtea won on time"]

1. d4 {[%clk 0:03:00.9]} 1... e6 {[%clk 0:02:59.7]} 2. Nf3 {[%clk 0:02:52.7]}
2... Nf6 {[%clk 0:02:59.6]} 3. g3 {[%clk 0:02:51.5]} 3... c5 {[%clk 0:02:59.7]}
4. Bg2 {[%clk 0:02:48.5]} 4... Nc6 {[%clk 0:02:58.1]} 5. O-O {[%clk 0:02:46.8]}
5... d5 {[%clk 0:02:58.3]} 6. c4 {[%clk 0:02:41.9]} 6... dxc4 {[%clk 0:02:47.7]}
7. dxc5 {[%clk 0:02:37.5]} 7... Qxd1 {[%clk 0:02:41.4]} 8. Rxd1 {[%clk
0:02:38.4]} 8... Bxc5 {[%clk 0:02:41.2]} 9. Nbd2 {[%clk 0:02:18.4]} 9... Ng4
{[%clk 0:02:24.2]} 10. e3 {[%clk 0:02:12]} 10... Nge5 {[%clk 0:02:15.4]} 11. Ne4
{[%clk 0:02:01.6]} 11... Bb6 {[%clk 0:02:11.9]} 12. Nd6+ {[%clk 0:02:00]} 12...
Ke7 {[%clk 0:02:10.2]} 13. Nxe5 {[%clk 0:01:49.7]} 13... Nxe5 {[%clk 0:02:09.5]}
14. Nxb7 {[%clk 0:01:43.2]} 14... Rb8 {[%clk 0:02:01.5]} 15. Nd6 {[%clk
0:01:41.9]} 15... Ba6 {[%clk 0:01:45.9]} 16. b3 {[%clk 0:01:36.3]} 16... Rhd8
{[%clk 0:01:20.5]} 17. Ba3 {[%clk 0:01:33.4]} 17... Kf6 {[%clk 0:00:53.2]} 18.
Ne4+ {[%clk 0:01:16.4]} 18... Kg6 {[%clk 0:00:51.5]} 19. Bd6 {[%clk 0:01:13.9]}
19... Nd3 {[%clk 0:00:32.3]} 20. Bxb8 {[%clk 0:01:08.5]} 20... Rxb8 {[%clk
0:00:32.4]} 21. bxc4 {[%clk 0:01:08.3]} 21... Bxc4 {[%clk 0:00:30.8]} 22. Nd6
{[%clk 0:01:08.2]} 22... Ba6 {[%clk 0:00:26.5]} 23. Be4+ {[%clk 0:01:07.7]}
23... f5 {[%clk 0:00:22.3]} 24. Bxd3 {[%clk 0:01:08.6]} 24... Bxd3 {[%clk
0:00:17.2]} 25. Rxd3 {[%clk 0:01:09.5]} 25... Rd8 {[%clk 0:00:15.7]} 26. Rad1
{[%clk 0:01:07.9]} 26... Bc5 {[%clk 0:00:04.4]} 27. Nb7 {[%clk 0:01:05]} 1-0

[Event "*** SCC Grand Prix: Titled Tuesday Blitz"]
[Site "Chess.com"]
[Date "2020.08.25"]
[Round "3"]
[White "topotun"]
[Black "maximnovik"]
[Result "1-0"]
[WhiteElo "2727"]
[BlackElo "2469"]
[TimeControl "180+1"]
[EndTime "10:29:19 PDT"]
[Termination "topotun won by resignation"]

1. e4 {[%clk 0:03:00.2]} 1... c6 {[%clk 0:02:59.5]} 2. d4 {[%clk 0:03:00.5]}
2... d5 {[%clk 0:03:00]} 3. Nd2 {[%clk 0:03:01]} 3... dxe4 {[%clk 0:02:59.8]} 4.
Nxe4 {[%clk 0:03:01.9]} 4... Bf5 {[%clk 0:03:00.1]} 5. Ng3 {[%clk 0:03:02.1]}
5... Bg6 {[%clk 0:03:00.5]} 6. h4 {[%clk 0:03:02.5]} 6... h6 {[%clk 0:03:00.1]}
7. Nf3 {[%clk 0:03:02.8]} 7... e6 {[%clk 0:02:59.7]} 8. h5 {[%clk 0:03:03.2]}
8... Bh7 {[%clk 0:03:00.1]} 9. Bd3 {[%clk 0:03:03.4]} 9... Bxd3 {[%clk
0:03:00.5]} 10. Qxd3 {[%clk 0:03:04.3]} 10... Nf6 {[%clk 0:03:00.6]} 11. Bd2
{[%clk 0:03:04.6]} 11... c5 {[%clk 0:03:00.2]} 12. Ne4 {[%clk 0:03:04.5]} 12...
Nbd7 {[%clk 0:02:56.8]} 13. O-O-O {[%clk 0:02:59.6]} 13... Be7 {[%clk
0:02:56.2]} 14. Kb1 {[%clk 0:02:50]} 14... Qc7 {[%clk 0:02:32.6]} 15. Nxf6+
{[%clk 0:02:45.1]} 15... Nxf6 {[%clk 0:02:24.7]} 16. Qb5+ {[%clk 0:02:18]} 16...
Qd7 {[%clk 0:02:19.8]} 17. Qxd7+ {[%clk 0:02:17.9]} 17... Nxd7 {[%clk
0:02:18.8]} 18. d5 {[%clk 0:02:18.1]} 18... exd5 {[%clk 0:02:11.5]} 19. Rhe1
{[%clk 0:02:13.9]} 19... Kf8 {[%clk 0:02:06.6]} 20. Bc1 {[%clk 0:01:31]} 20...
Nf6 {[%clk 0:02:05.1]} 21. Nh4 {[%clk 0:01:31.4]} 21... Re8 {[%clk 0:01:47.1]}
22. Nf5 {[%clk 0:01:20.6]} 22... d4 {[%clk 0:01:37.9]} 23. Bf4 {[%clk
0:00:36.6]} 23... Nxh5 {[%clk 0:01:15.9]} 24. Bh2 {[%clk 0:00:36.8]} 24... Nf6
{[%clk 0:00:51.6]} 25. Nxe7 {[%clk 0:00:36.5]} 25... Rxe7 {[%clk 0:00:51.4]} 26.
Bd6 {[%clk 0:00:36.7]} 26... Nd5 {[%clk 0:00:51.4]} 27. Bxc5 {[%clk 0:00:35.7]}
27... b6 {[%clk 0:00:41.2]} 28. Ba3 {[%clk 0:00:35.7]} 1-0

[Event "*** SCC Grand Prix: Titled Tuesday Blitz"]
[Site "Chess.com"]
[Date "2020.08.25"]
[Round "3"]
[White "GukeshDommaraju"]
[Black "Alembong"]
[Result "1-0"]
[WhiteElo "2715"]
[BlackElo "2462"]
[TimeControl "180+1"]
[EndTime "10:29:20 PDT"]
[Termination "GukeshDommaraju won by resignation"]

1. e4 {[%clk 0:03:00.9]} 1... e5 {[%clk 0:02:58.9]} 2. Nf3 {[%clk 0:03:00.6]}
2... Nf6 {[%clk 0:02:57.1]} 3. Nxe5 {[%clk 0:03:00.4]} 3... d6 {[%clk
0:02:57.3]} 4. Nf3 {[%clk 0:03:00.6]} 4... Nxe4 {[%clk 0:02:57.4]} 5. Nc3 {[%clk
0:03:00.9]} 5... Nf6 {[%clk 0:02:56.7]} 6. d4 {[%clk 0:03:00.5]} 6... Be7 {[%clk
0:02:56.7]} 7. d5 {[%clk 0:02:57.2]} 7... O-O {[%clk 0:02:54.2]} 8. Bd3 {[%clk
0:02:47.7]} 8... b6 {[%clk 0:02:52.7]} 9. O-O {[%clk 0:02:45.8]} 9... Bb7 {[%clk
0:02:53.2]} 10. Re1 {[%clk 0:02:38.1]} 10... a6 {[%clk 0:02:40.6]} 11. Nd4
{[%clk 0:02:29.2]} 11... Re8 {[%clk 0:02:36.9]} 12. Bg5 {[%clk 0:02:21.8]} 12...
Nbd7 {[%clk 0:02:26.8]} 13. Bf5 {[%clk 0:01:49.7]} 13... b5 {[%clk 0:01:52.6]}
14. Nc6 {[%clk 0:01:26.3]} 14... Bxc6 {[%clk 0:01:52.5]} 15. dxc6 {[%clk
0:01:27.2]} 15... Ne5 {[%clk 0:01:52.4]} 16. Bxf6 {[%clk 0:01:14.3]} 16... Bxf6
{[%clk 0:01:51.3]} 17. Nd5 {[%clk 0:01:14.5]} 17... g6 {[%clk 0:01:39.1]} 18.
Bd7 {[%clk 0:01:06.7]} 18... Rf8 {[%clk 0:01:33.8]} 19. f4 {[%clk 0:00:57]}
19... Nxd7 {[%clk 0:01:30]} 20. cxd7 {[%clk 0:00:57.9]} 20... Bg7 {[%clk
0:01:26.5]} 21. Qg4 {[%clk 0:00:35.5]} 21... f5 {[%clk 0:01:25.5]} 22. Qf3
{[%clk 0:00:32.5]} 22... Ra7 {[%clk 0:00:24]} 23. Ne7+ {[%clk 0:00:25.6]} 1-0

[Event "*** SCC Grand Prix: Titled Tuesday Blitz"]
[Site "Chess.com"]
[Date "2020.08.25"]
[Round "3"]
[White "Supernotar"]
[Black "MuradNuri"]
[Result "1-0"]
[WhiteElo "2719"]
[BlackElo "2464"]
[TimeControl "180+1"]
[EndTime "10:29:21 PDT"]
[Termination "Supernotar won by resignation"]

1. d4 {[%clk 0:03:00.9]} 1... d5 {[%clk 0:02:57.4]} 2. c4 {[%clk 0:03:00.9]}
2... e6 {[%clk 0:02:55.7]} 3. Nf3 {[%clk 0:03:00.4]} 3... a6 {[%clk 0:02:53.5]}
4. e3 {[%clk 0:02:59.4]} 4... Nf6 {[%clk 0:02:53.4]} 5. Nbd2 {[%clk 0:02:58.7]}
5... c5 {[%clk 0:02:52.8]} 6. dxc5 {[%clk 0:02:58.1]} 6... Bxc5 {[%clk
0:02:51.1]} 7. a3 {[%clk 0:02:58.4]} 7... Nc6 {[%clk 0:02:48.8]} 8. b4 {[%clk
0:02:58.4]} 8... Bd6 {[%clk 0:02:48.4]} 9. Bb2 {[%clk 0:02:58.5]} 9... O-O
{[%clk 0:02:48.2]} 10. Be2 {[%clk 0:02:58.3]} 10... Re8 {[%clk 0:02:48.5]} 11.
O-O {[%clk 0:02:57.9]} 11... Bc7 {[%clk 0:02:45.9]} 12. Rc1 {[%clk 0:02:54.5]}
12... Ne4 {[%clk 0:02:42.2]} 13. Qc2 {[%clk 0:02:39.5]} 13... Nxd2 {[%clk
0:02:25.1]} 14. Qxd2 {[%clk 0:02:35]} 14... dxc4 {[%clk 0:02:24]} 15. Bxc4
{[%clk 0:02:29.1]} 15... Qe7 {[%clk 0:02:06.8]} 16. Rfd1 {[%clk 0:02:19.6]}
16... e5 {[%clk 0:01:48.7]} 17. Bd5 {[%clk 0:02:11.2]} 17... Bg4 {[%clk
0:01:30.1]} 18. Qc3 {[%clk 0:02:03.9]} 18... Rac8 {[%clk 0:01:10]} 19. h3 {[%clk
0:01:57.3]} 19... Bh5 {[%clk 0:01:07.5]} 20. g4 {[%clk 0:01:39.9]} 20... Bg6
{[%clk 0:01:05.9]} 21. Qc5 {[%clk 0:01:25.3]} 21... Qf6 {[%clk 0:00:42.6]} 22.
Kg2 {[%clk 0:01:19.9]} 22... Bb8 {[%clk 0:00:40.1]} 23. Qb6 {[%clk 0:01:15]}
23... Re7 {[%clk 0:00:21.7]} 24. Bxc6 {[%clk 0:01:10.6]} 24... bxc6 {[%clk
0:00:21]} 25. Rxc6 {[%clk 0:00:56.9]} 25... Qxf3+ {[%clk 0:00:03.7]} 26. Kxf3
{[%clk 0:00:49.4]} 1-0

[Event "*** SCC Grand Prix: Titled Tuesday Blitz"]
[Site "Chess.com"]
[Date "2020.08.25"]
[Round "3"]
[White "Kobalia"]
[Black "lucasmito"]
[Result "1-0"]
[WhiteElo "2772"]
[BlackElo "2524"]
[TimeControl "180+1"]
[EndTime "10:29:22 PDT"]
[Termination "Kobalia won by checkmate"]

1. e4 {[%clk 0:03:00.9]} 1... e5 {[%clk 0:02:59.9]} 2. Nf3 {[%clk 0:03:00]} 2...
Nc6 {[%clk 0:02:54.4]} 3. Bb5 {[%clk 0:02:59.4]} 3... f5 {[%clk 0:02:54.1]} 4.
Nc3 {[%clk 0:02:57.1]} 4... fxe4 {[%clk 0:02:48.3]} 5. Nxe4 {[%clk 0:02:58]}
5... d5 {[%clk 0:02:48.5]} 6. Nxe5 {[%clk 0:02:57.9]} 6... dxe4 {[%clk
0:02:48.9]} 7. Nxc6 {[%clk 0:02:58]} 7... Qd5 {[%clk 0:02:49.6]} 8. c4 {[%clk
0:02:56.6]} 8... Qd6 {[%clk 0:02:49.4]} 9. Nxa7+ {[%clk 0:02:41.5]} 9... Bd7
{[%clk 0:02:47.7]} 10. Bxd7+ {[%clk 0:02:40.9]} 10... Qxd7 {[%clk 0:02:48.6]}
11. Nb5 {[%clk 0:02:40.9]} 11... Nf6 {[%clk 0:02:49.1]} 12. O-O {[%clk
0:02:36.3]} 12... Bc5 {[%clk 0:02:46.4]} 13. d4 {[%clk 0:02:15.6]} 13... exd3
{[%clk 0:02:47.3]} 14. Re1+ {[%clk 0:02:13.4]} 14... Kf7 {[%clk 0:02:46.2]} 15.
Be3 {[%clk 0:02:13.6]} 15... Bxe3 {[%clk 0:02:39.9]} 16. Rxe3 {[%clk 0:02:13.1]}
16... Rad8 {[%clk 0:02:35.8]} 17. Qd2 {[%clk 0:02:10.6]} 17... c6 {[%clk
0:02:29.2]} 18. Nc3 {[%clk 0:02:09.9]} 18... Rhe8 {[%clk 0:02:28.9]} 19. Rae1
{[%clk 0:02:08.8]} 19... Rxe3 {[%clk 0:02:28.5]} 20. Rxe3 {[%clk 0:02:08.8]}
20... Qd4 {[%clk 0:02:18.5]} 21. h3 {[%clk 0:01:49.2]} 21... Qxc4 {[%clk
0:02:17.4]} 22. a3 {[%clk 0:01:42.3]} 22... Qd4 {[%clk 0:02:03.8]} 23. Rf3
{[%clk 0:01:36.5]} 23... Kg8 {[%clk 0:01:41]} 24. Re3 {[%clk 0:01:35.8]} 24...
c5 {[%clk 0:01:35.7]} 25. Re7 {[%clk 0:01:34.6]} 25... b6 {[%clk 0:01:22.5]} 26.
Qg5 {[%clk 0:01:24.9]} 26... Ne8 {[%clk 0:00:59.2]} 27. Qh5 {[%clk 0:01:13.6]}
27... Nd6 {[%clk 0:00:45.7]} 28. Nb5 {[%clk 0:00:39.5]} 28... Qf6 {[%clk
0:00:34.1]} 29. Qd5+ {[%clk 0:00:23.9]} 29... Nf7 {[%clk 0:00:33.9]} 30. Re6
{[%clk 0:00:24.3]} 30... Rxd5 {[%clk 0:00:32.9]} 31. Re8# {[%clk 0:00:24.2]} 1-0

[Event "*** SCC Grand Prix: Titled Tuesday Blitz"]
[Site "Chess.com"]
[Date "2020.08.25"]
[Round "3"]
[White "Gvetadze"]
[Black "vinniethepooh"]
[Result "0-1"]
[WhiteElo "2404"]
[BlackElo "2668"]
[TimeControl "180+1"]
[EndTime "10:29:22 PDT"]
[Termination "vinniethepooh won by resignation"]

1. Nf3 {[%clk 0:03:00.9]} 1... Nf6 {[%clk 0:03:00]} 2. g3 {[%clk 0:03:01.8]}
2... d6 {[%clk 0:02:57.1]} 3. Bg2 {[%clk 0:03:02.2]} 3... g6 {[%clk 0:02:57.4]}
4. O-O {[%clk 0:03:02.7]} 4... Bg7 {[%clk 0:02:58]} 5. d3 {[%clk 0:03:03.3]}
5... O-O {[%clk 0:02:58.4]} 6. e4 {[%clk 0:03:03.9]} 6... Nc6 {[%clk 0:02:58.7]}
7. Nc3 {[%clk 0:03:04.4]} 7... e5 {[%clk 0:02:58.6]} 8. h3 {[%clk 0:03:04.8]}
8... h6 {[%clk 0:02:58.5]} 9. Be3 {[%clk 0:03:05.3]} 9... Be6 {[%clk 0:02:58.3]}
10. Qd2 {[%clk 0:03:05.9]} 10... Qd7 {[%clk 0:02:53.6]} 11. Kh2 {[%clk
0:03:05.4]} 11... Kh7 {[%clk 0:02:53.3]} 12. d4 {[%clk 0:03:05.4]} 12... exd4
{[%clk 0:02:43.8]} 13. Nxd4 {[%clk 0:03:04.5]} 13... Rfe8 {[%clk 0:02:42.3]} 14.
Nxe6 {[%clk 0:03:03.5]} 14... fxe6 {[%clk 0:02:35.1]} 15. f4 {[%clk 0:03:02.9]}
15... Rad8 {[%clk 0:02:30.2]} 16. Rad1 {[%clk 0:02:59.5]} 16... e5 {[%clk
0:02:13.3]} 17. f5 {[%clk 0:02:58.4]} 17... g5 {[%clk 0:02:13.9]} 18. Nd5 {[%clk
0:02:55.2]} 18... Rf8 {[%clk 0:02:07.1]} 19. Bf3 {[%clk 0:02:51.4]} 19... Ne7
{[%clk 0:01:51.9]} 20. Nxf6+ {[%clk 0:02:48.1]} 20... Bxf6 {[%clk 0:01:51.4]}
21. Bh5 {[%clk 0:02:45.5]} 21... Qc6 {[%clk 0:01:42.9]} 22. Qd3 {[%clk
0:02:38.1]} 22... d5 {[%clk 0:01:37]} 23. Bg6+ {[%clk 0:02:34.6]} 23... Kg7
{[%clk 0:01:36]} 24. exd5 {[%clk 0:02:31.3]} 24... Nxd5 {[%clk 0:01:36.9]} 25.
Bc1 {[%clk 0:02:10]} 25... Nf4 {[%clk 0:01:20.9]} 26. gxf4 {[%clk 0:01:51.9]}
26... Rxd3 {[%clk 0:01:18.9]} 27. Rxd3 {[%clk 0:01:49.3]} 27... e4 {[%clk
0:01:00.7]} 28. Re3 {[%clk 0:01:31.5]} 28... Qxc2+ {[%clk 0:00:52.1]} 29. Kh1
{[%clk 0:01:30.4]} 29... gxf4 {[%clk 0:00:51.4]} 30. Rb3 {[%clk 0:01:27]} 30...
f3 {[%clk 0:00:39.6]} 31. Rg1 {[%clk 0:01:24.4]} 31... Be5 {[%clk 0:00:36.3]}
32. f6+ {[%clk 0:01:05.4]} 32... Kxf6 {[%clk 0:00:33.8]} 33. Rxf3+ {[%clk
0:01:04.6]} 33... Ke7 {[%clk 0:00:22.8]} 34. Rfg3 {[%clk 0:01:02.9]} 34... Bxg3
{[%clk 0:00:21.2]} 35. Rxg3 {[%clk 0:01:03.3]} 35... Rf1+ {[%clk 0:00:18.9]} 36.
Rg1 {[%clk 0:01:03.3]} 36... Rxg1+ {[%clk 0:00:19.6]} 37. Kxg1 {[%clk
0:01:03.8]} 37... Qxc1+ {[%clk 0:00:20.5]} 38. Kg2 {[%clk 0:01:04.5]} 38... Qg5+
{[%clk 0:00:19.2]} 39. Kf2 {[%clk 0:01:05]} 39... Qxg6 {[%clk 0:00:20.1]} 0-1

[Event "*** SCC Grand Prix: Titled Tuesday Blitz"]
[Site "Chess.com"]
[Date "2020.08.25"]
[Round "3"]
[White "Mikasinski"]
[Black "tvjosue"]
[Result "0-1"]
[WhiteElo "2347"]
[BlackElo "2548"]
[TimeControl "180+1"]
[EndTime "10:29:22 PDT"]
[Termination "tvjosue won by resignation"]

1. e4 {[%clk 0:03:00.9]} 1... c5 {[%clk 0:02:59.3]} 2. Nf3 {[%clk 0:03:01]} 2...
d6 {[%clk 0:02:58.8]} 3. d4 {[%clk 0:03:01.6]} 3... cxd4 {[%clk 0:02:58.8]} 4.
Nxd4 {[%clk 0:03:02.3]} 4... Nf6 {[%clk 0:02:58.3]} 5. Nc3 {[%clk 0:03:02.8]}
5... a6 {[%clk 0:02:58.4]} 6. Be2 {[%clk 0:03:01.7]} 6... e5 {[%clk 0:02:54]} 7.
Nf3 {[%clk 0:03:01.3]} 7... h6 {[%clk 0:02:53.2]} 8. Nd2 {[%clk 0:02:59.8]} 8...
b5 {[%clk 0:02:49.6]} 9. a4 {[%clk 0:02:59.4]} 9... b4 {[%clk 0:02:49.5]} 10.
Nd5 {[%clk 0:02:59.8]} 10... Nxd5 {[%clk 0:02:49.8]} 11. exd5 {[%clk 0:02:59.9]}
11... Bb7 {[%clk 0:02:50]} 12. O-O {[%clk 0:03:00.1]} 12... Bxd5 {[%clk
0:02:46.6]} 13. Bf3 {[%clk 0:02:48.1]} 13... Bxf3 {[%clk 0:02:46.3]} 14. Qxf3
{[%clk 0:02:48.6]} 14... Nd7 {[%clk 0:02:46.4]} 15. Rd1 {[%clk 0:02:44.4]} 15...
Rc8 {[%clk 0:02:44.3]} 16. Ne4 {[%clk 0:02:39.2]} 16... Rxc2 {[%clk 0:02:40.5]}
17. Rxd6 {[%clk 0:01:44.2]} 17... Qc7 {[%clk 0:02:29.5]} 18. Rd1 {[%clk
0:01:37.3]} 18... Be7 {[%clk 0:02:17.8]} 19. Qb3 {[%clk 0:01:12.9]} 19... O-O
{[%clk 0:02:07.3]} 20. Rxd7 {[%clk 0:01:06.7]} 20... Rxc1+ {[%clk 0:02:05.2]}
21. Rxc1 {[%clk 0:01:04.1]} 21... Qxd7 {[%clk 0:01:58.4]} 22. Rd1 {[%clk
0:01:01.6]} 22... Qc6 {[%clk 0:01:58.1]} 23. f3 {[%clk 0:00:57.1]} 23... Kh8
{[%clk 0:01:56.3]} 24. h3 {[%clk 0:00:49.6]} 24... f5 {[%clk 0:01:56]} 25. Nf2
{[%clk 0:00:49.2]} 25... Bc5 {[%clk 0:01:54.4]} 26. Qc2 {[%clk 0:00:46.6]} 26...
e4 {[%clk 0:01:50.5]} 27. Kf1 {[%clk 0:00:32.8]} 27... exf3 {[%clk 0:01:49.4]}
28. g3 {[%clk 0:00:16.4]} 28... Qb6 {[%clk 0:01:45.6]} 29. Nd3 {[%clk
0:00:13.8]} 29... Bd4 {[%clk 0:01:45.2]} 30. Nf4 {[%clk 0:00:11.9]} 30... Re8
{[%clk 0:01:43.6]} 31. Qxf5 {[%clk 0:00:08]} 31... Bxb2 {[%clk 0:01:24.6]} 32.
Ng6+ {[%clk 0:00:07.9]} 32... Kg8 {[%clk 0:01:23.1]} 33. Qd5+ {[%clk 0:00:07.3]}
33... Qe6 {[%clk 0:01:20.8]} 34. Qd3 {[%clk 0:00:02.4]} 34... Qe2+ {[%clk
0:01:18.6]} 0-1

[Event "*** SCC Grand Prix: Titled Tuesday Blitz"]
[Site "Chess.com"]
[Date "2020.08.25"]
[Round "3"]
[White "AlexeiShirov"]
[Black "Kotofeyca"]
[Result "1-0"]
[WhiteElo "2710"]
[BlackElo "2331"]
[TimeControl "180+1"]
[EndTime "10:29:23 PDT"]
[Termination "AlexeiShirov won by resignation"]

1. e4 {[%clk 0:03:00.9]} 1... c5 {[%clk 0:02:59.2]} 2. Nf3 {[%clk 0:02:59.6]}
2... d6 {[%clk 0:02:59.4]} 3. d4 {[%clk 0:02:58.2]} 3... cxd4 {[%clk 0:03:00.3]}
4. Nxd4 {[%clk 0:02:57]} 4... Nf6 {[%clk 0:03:00.9]} 5. Nc3 {[%clk 0:02:56.3]}
5... a6 {[%clk 0:03:01.4]} 6. h3 {[%clk 0:02:55.6]} 6... e6 {[%clk 0:03:00.1]}
7. g4 {[%clk 0:02:54.3]} 7... b5 {[%clk 0:03:00.2]} 8. Bg2 {[%clk 0:02:53.8]}
8... Bb7 {[%clk 0:03:00.7]} 9. O-O {[%clk 0:02:52]} 9... Qc7 {[%clk 0:02:51.9]}
10. g5 {[%clk 0:02:36.8]} 10... Nfd7 {[%clk 0:02:46.7]} 11. f4 {[%clk
0:02:35.9]} 11... b4 {[%clk 0:02:41]} 12. Nce2 {[%clk 0:02:34.9]} 12... Nc5
{[%clk 0:02:41.1]} 13. Ng3 {[%clk 0:02:26.7]} 13... Nc6 {[%clk 0:02:40.9]} 14.
Be3 {[%clk 0:02:25.5]} 14... Be7 {[%clk 0:02:17.4]} 15. f5 {[%clk 0:02:24.3]}
15... Nxd4 {[%clk 0:02:12.7]} 16. Qxd4 {[%clk 0:02:22.9]} 16... e5 {[%clk
0:02:05.8]} 17. Qd2 {[%clk 0:02:21.1]} 17... g6 {[%clk 0:01:41.3]} 18. f6 {[%clk
0:02:16.2]} 18... Bf8 {[%clk 0:01:41.4]} 19. h4 {[%clk 0:02:11.4]} 19... h6
{[%clk 0:01:40.6]} 20. gxh6 {[%clk 0:02:08.9]} 20... Ne6 {[%clk 0:01:31.9]} 21.
Ne2 {[%clk 0:02:06.4]} 21... a5 {[%clk 0:01:28.9]} 22. Rad1 {[%clk 0:01:56.8]}
22... Rc8 {[%clk 0:01:26.2]} 23. c3 {[%clk 0:01:55.5]} 23... Ba6 {[%clk
0:01:23.9]} 24. Rf2 {[%clk 0:01:52.7]} 24... Bxe2 {[%clk 0:01:12.3]} 25. Rxe2
{[%clk 0:01:50.5]} 25... bxc3 {[%clk 0:01:13.2]} 26. bxc3 {[%clk 0:01:49.3]}
26... Qxc3 {[%clk 0:01:09.7]} 27. Qd5 {[%clk 0:01:40.2]} 27... Qc6 {[%clk
0:00:47]} 28. Rc1 {[%clk 0:01:34.8]} 28... Qxc1+ {[%clk 0:00:45.8]} 29. Bxc1
{[%clk 0:01:33.5]} 29... Rxc1+ {[%clk 0:00:46.7]} 30. Kf2 {[%clk 0:01:30.9]}
30... Rxh6 {[%clk 0:00:25.1]} 31. Qb5+ {[%clk 0:01:27.6]} 31... Kd8 {[%clk
0:00:23.5]} 32. Bh3 {[%clk 0:01:21.3]} 32... Rxh4 {[%clk 0:00:20.1]} 33. Bxe6
{[%clk 0:01:19.8]} 33... Rh2+ {[%clk 0:00:20]} 34. Kg3 {[%clk 0:01:18.9]} 34...
fxe6 {[%clk 0:00:12.5]} 35. Rxh2 {[%clk 0:01:17.1]} 35... Rc3+ {[%clk
0:00:10.5]} 36. Kg4 {[%clk 0:01:16.9]} 36... d5 {[%clk 0:00:10.2]} 37. Rh8
{[%clk 0:01:15.3]} 1-0